bitfinex/quotes_SOLUSD_20240906
["timestamp","ask_amount","ask_price","bid_price","bid_amount"]
[1725618946858,7.6425,130.85,130.83,0.8381569]
[1725618947647,7.6429,130.84,130.83,0.8381569]
[1725618951327,27.6429,130.84,130.83,0.8381569]
[1725618956527,20.0,130.84,130.83,0.8381569]
[1725618956858,27.6429,130.84,130.83,0.8381569]
[1725618958557,25.7298,130.9,130.83,0.8381569]
[1725618959131,7.6421,130.86,130.83,0.8381569]
[1725618959438,7.6429,130.84,130.83,0.8381569]
[1725618960734,7.642,130.86,130.83,0.8381569]
[1725618960938,27.6423,130.85,130.83,0.8381569]
[1725618961237,7.6429,130.84,130.83,0.8381569]
[1725618961640,7.6429,130.84,130.83,0.3381569]
[1725618962474,27.6429,130.84,130.83,0.3381569]
[1725618962633,10.0,130.92,130.83,0.3381569]
[1725618962634,7.6404,130.89,130.83,0.3381569]
[1725618962951,10.8067,130.94,130.83,0.3381569]
[1725618963160,7.6402,130.89,130.85,19.1057]
[1725618963538,7.6402,130.89,130.85,26.7479]
[1725618963739,7.6395,130.9,130.85,19.1057]
[1725618964059,6.5631,130.94,130.87,7.6408]
[1725618964431,7.6391,130.91,130.87,7.6408]
[1725618964849,7.6398,130.9,130.86,7.6416]
[1725618965557,7.6384,130.92,130.88,7.6405]
[1725618965752,8.45908477,130.97,130.87,66.3103]
[1725618965936,6.3949,130.97,130.9,7.6389]
[1725618966264,6.3949,130.97,130.89,26.7393]
[1725618967148,20.0,130.96,130.9,7.6391]
[1725618967343,7.6369,130.95,130.9,7.6391]
[1725618967658,20.0,130.94,130.91,7.6384]
[1725618968151,7.6368,130.95,130.91,7.6384]
[1725618968462,27.6373,130.94,130.9,7.6393]
[1725618968661,20.0,130.93,130.9,7.6393]
[1725618969162,27.6379,130.93,130.89,26.7391]
[1725618970258,20.0,130.93,130.87,16.3103]
[1725618970460,19.0901,130.96,130.87,23.951]
[1725618970461,20.0,130.95,130.87,23.951]
[1725618970633,7.6384,130.92,130.88,7.6405]
[1725618970948,20.0,130.91,130.88,7.6405]
[1725618971733,20.0,130.91,130.87,16.3103]
[1725618971952,20.0,130.95,130.87,16.3103]
[1725618972952,7.6374,130.94,130.9,7.6392]
[1725618973660,7.6377,130.93,130.9,19.0984]
[1725618974764,7.6372,130.94,130.9,26.7378]
[1725618975241,19.0888,130.97,130.9,26.7378]
[1725618975242,19.0888,130.97,130.9,19.0984]
[1725618975442,7.6366,130.95,130.91,7.6386]
[1725618975761,20.0,130.94,130.91,7.6386]
[1725618976759,20.0,130.94,130.92,19.0955]
[1725618976941,7.6356,130.97,130.93,7.6376]
[1725618977162,27.636,130.96,130.93,7.6376]
[1725618977362,27.636,130.96,130.92,26.7335]
[1725618979164,7.6366,130.95,130.92,19.0955]
[1725618979345,7.6375,130.94,130.9,26.7375]
[1725618980060,7.6377,130.93,130.9,19.0984]
[1725618980361,7.6377,130.93,130.9,26.7377]
[1725618980948,20.0,130.96,130.91,7.6386]
[1725618981162,20.0,130.97,130.91,7.6386]
[1725618981367,7.6367,130.95,130.92,7.6382]
[1725618981662,7.6355,130.97,130.93,7.6375]
[1725618982166,7.6359,130.96,130.93,7.6375]
[1725618982546,7.6359,130.96,130.92,32.7342]
[1725618985175,7.6336,131.0,130.96,7.6356]
[1725618985347,7.6341,130.99,130.95,26.727]
[1725618985551,19.0809,131.03,130.95,26.727]
[1725618985552,7.6339,131.0,130.96,7.6358]
[1725618986040,7.6324,131.02,130.97,19.0868]
[1725618986246,1.98547674,131.05,130.99,19.0851]
[1725618986467,7.6316,131.04,131.0,8.59257293]
[1725618986668,2.00848555,131.08,131.01,20.04035971]
[1725618986968,19.0809,131.12,131.01,20.04035971]
[1725618986969,7.6305,131.06,131.02,8.58978659]
[1725618987157,19.07,131.1,131.01,35.5269]
[1725618987669,7.6312,131.04,131.01,35.5269]
[1725618988339,19.07,131.1,131.01,16.4445]
[1725618988340,7.6318,131.03,131.01,16.4445]
[1725618988540,7.6314,131.04,131.01,16.4445]
[1725618989142,7.6308,131.05,131.01,16.4445]
[1725618989341,20.0,131.04,131.01,16.4445]
[1725618991052,20.0,131.08,131.02,19.0807]
[1725618991262,7.6294,131.08,131.03,7.6317]
[1725618991457,7.6294,131.08,131.04,8.46593589]
[1725618991664,7.6294,131.08,131.05,0.83477218]
[1725618992059,7.6295,131.07,131.03,7.6317]
[1725618992260,7.6289,131.08,131.04,26.7087]
[1725618992466,7.6289,131.08,131.04,26.7084]
[1725618992467,7.629,131.08,131.04,26.7084]
[1725618992770,7.6285,131.09,131.05,7.6304]
[1725618993273,7.6254,131.14,131.06,6.5089]
[1725618993570,7.6266,131.12,131.07,7.6293]
[1725618993774,7.6281,131.1,131.06,6.5089]
[1725618994266,7.6283,131.09,131.06,6.5089]
[1725618994473,7.6292,131.08,131.03,13.6331]
[1725618994784,7.6292,131.08,131.04,7.6311]
[1725618994983,7.6292,131.08,131.03,13.633]
[1725618996381,7.6296,131.07,131.03,13.633]
[1725618997293,7.6296,131.07,131.03,6.0014]
[1725618997588,7.6296,131.07,131.02,26.7127]
[1725618997887,7.631,131.05,131.01,24.0773]
[1725618998265,7.6314,131.04,131.01,16.4445]
[1725618999368,19.0716,131.09,131.01,16.4445]
[1725618999369,7.632,131.03,131.01,16.4445]
[1725618999687,7.632,131.03,130.99,19.085]
[1725619000258,7.632,131.03,130.99,26.719]
[1725619000885,19.0742,131.07,130.99,19.085]
[1725619001059,7.6319,131.03,130.99,26.7189]
[1725619001260,7.6314,131.04,130.99,26.7189]
[1725619001465,20.0,131.03,131.0,7.6334]
[1725619001666,6.26896636,131.1,131.02,19.081]
[1725619001871,20.0,131.09,131.02,19.081]
[1725619002092,7.6301,131.06,131.02,26.7132]
[1725619002263,20.0,131.05,131.02,26.7132]
[1725619002800,20.0,131.05,131.02,19.081]
[1725619003289,20.0,131.05,131.0,7.6334]
[1725619003469,20.0,131.08,131.0,7.6334]
[1725619003875,7.632,131.03,130.97,66.2207]
[1725619004173,7.632,131.03,130.99,7.6337]
[1725619004766,7.6314,131.04,130.99,7.6337]
[1725619004967,20.0,131.03,130.99,7.6337]
[1725619005576,27.6321,131.03,130.99,7.6337]
[1725619006089,7.6325,131.02,130.98,26.7211]
[1725619006290,20.0,131.03,130.97,16.2207]
[1725619006504,7.6336,131.0,130.97,16.2207]
[1725619006668,7.6331,131.01,130.97,23.8559]
[1725619007677,7.6326,131.02,130.98,7.6347]
[1725619007880,20.0,131.01,130.98,7.6347]
[1725619008391,20.0,131.01,130.99,27.29318352]
[1725619008691,7.632,131.03,130.99,26.7193]
[1725619008692,20.0,131.02,130.99,26.7193]
[1725619009895,27.6325,131.02,130.99,19.0852]
[1725619011298,20.0,131.02,131.01,7.633]
[1725619011490,7.6313,131.04,131.0,7.6333]
[1725619011689,317.021,131.17,131.03,7.6318]
[1725619011690,19.0707,131.1,131.03,7.6318]
[1725619011997,7.6306,131.06,131.02,7.6321]
[1725619012377,40.18709421,131.1,130.99,19.0853]
[1725619012675,19.0739,131.07,130.99,26.7192]
[1725619013081,19.0787,131.04,130.97,16.2207]
[1725619013278,7.6331,131.01,130.97,23.8556]
[1725619013802,7.6325,131.02,130.98,7.6346]
[1725619014005,7.6325,131.02,130.98,26.7214]
[1725619014325,7.6325,131.02,130.99,7.6341]
[1725619014678,7.632,131.03,130.99,7.6341]
[1725619014992,7.6316,131.04,131.0,7.6335]
[1725619015181,20.0,131.03,130.99,26.7177]
[1725619015383,7.632,131.03,130.99,26.7177]
[1725619017086,7.6314,131.04,131.0,7.6335]
[1725619017388,20.0,131.03,130.99,19.0839]
[1725619017590,7.6308,131.05,131.01,7.6326]
[1725619017805,20.0,131.04,131.01,7.6326]
[1725619019691,27.6313,131.04,131.0,26.716]
[1725619020903,7.6318,131.03,131.0,26.716]
[1725619021286,27.6315,131.04,131.0,26.716]
[1725619021615,19.0708,131.09,130.99,89.23281176]
[1725619021782,2.04709421,131.1,131.07,7.6295]
[1725619021981,3.17640555,131.12,131.04,7.631]
[1725619021982,7.6289,131.08,131.04,7.631]
[1725619022396,7.6289,131.08,131.04,22.9979]
[1725619023084,7.6285,131.09,131.05,7.6306]
[1725619023285,3.17640555,131.12,131.04,15.3669]
[1725619023500,7.6272,131.11,131.07,7.6291]
[1725619023906,3.17640555,131.12,131.04,15.3669]
[1725619024613,3.17640555,131.12,131.05,19.0763]
[1725619024908,23.17640555,131.12,131.05,19.0763]
[1725619025308,7.6272,131.11,131.07,7.6294]
[1725619025487,20.0,131.1,131.07,7.6294]
[1725619025692,20.0,131.1,131.08,7.6288]
[1725619025893,20.0,131.1,131.07,26.7025]
[1725619026113,20.0,131.11,131.07,26.7025]
[1725619026794,20.0,131.11,131.08,7.6288]
[1725619026995,20.0,131.11,131.08,7.6285]
[1725619027190,27.6267,131.12,131.08,7.6285]
[1725619027510,27.6267,131.12,131.07,26.7025]
[1725619028693,7.6281,131.1,131.05,7.6301]
[1725619028893,7.6284,131.09,131.05,7.6301]
[1725619029109,7.6289,131.08,131.04,34.4442]
[1725619029293,7.6289,131.08,131.04,42.0753]
[1725619030095,7.6295,131.07,131.04,34.4442]
[1725619030620,7.6291,131.08,131.04,34.4442]
[1725619031197,7.6291,131.08,131.04,42.0751]
[1725619031504,7.6278,131.1,131.06,7.63]
[1725619031813,20.0,131.09,131.06,7.63]
[1725619033603,27.6283,131.09,131.05,7.6305]
[1725619033809,20.0,131.09,131.04,15.3669]
[1725619034002,20.0,131.1,131.04,15.3669]
[1725619034815,7.6292,131.08,131.04,22.998]
[1725619035119,7.6283,131.09,131.05,7.6304]
[1725619035324,20.0,131.08,131.05,7.6304]
[1725619035695,20.0,131.08,131.06,19.0751]
[1725619035896,20.0,131.08,131.04,15.3669]
[1725619036096,7.6306,131.06,131.02,7.6323]
[1725619036906,7.6306,131.06,131.02,26.7132]
[1725619037101,20.0,131.05,131.01,15.3067]
[1725619037305,68.7808,131.11,131.01,15.3067]
[1725619037933,10.0,131.1,130.96,15.0236]
[1725619038137,20.0,131.09,130.96,15.0236]
[1725619038302,7.6331,131.01,130.96,22.6594]
[1725619038629,20.0,131.0,130.96,22.6594]
[1725619038805,27.6337,131.0,130.96,15.0236]
[1725619039000,7.6342,130.99,130.96,15.0236]
[1725619039219,20.0,131.0,130.96,15.0236]
[1725619039529,7.6348,130.98,130.93,23.2029]
[1725619039728,20.0,130.97,130.93,23.2029]
[1725619040626,20.0,130.97,130.94,7.6369]
[1725619040802,20.0,130.98,130.94,7.6369]
[1725619041927,7.636,130.96,130.93,15.5653]
[1725619042103,7.6354,130.97,130.93,15.5653]
[1725619042807,7.636,130.96,130.93,15.5653]
[1725619043225,7.6354,130.97,130.93,15.5653]
[1725619043408,20.0,130.96,130.93,15.5653]
[1725619043617,7.6342,130.99,130.93,34.6587]
[1725619043938,20.0,130.98,130.94,9.16243475]
[1725619044917,27.6349,130.98,130.93,42.2962]
[1725619045305,20.0,130.98,130.94,7.6369]
[1725619045512,20.0,131.03,130.94,7.6369]
[1725619045830,7.6343,130.99,130.94,7.6369]
[1725619046014,20.0,130.98,130.94,7.6369]
[1725619049529,7.6337,131.0,130.95,19.091]
[1725619049710,7.6333,131.01,130.97,7.6352]
[1725619050330,7.6348,130.98,130.95,19.091]
[1725619050838,7.6348,130.98,130.94,7.6367]
[1725619052116,27.6357,130.97,130.93,15.5653]
[1725619052319,27.6357,130.97,130.93,23.2029]
[1725619052931,7.6364,130.96,130.93,15.5653]
[1725619053145,20.0,130.95,130.9,15.9024]
[1725619053329,7.637,130.94,130.9,23.5417]
[1725619054035,20.0,130.95,130.91,7.6388]
[1725619054036,27.6367,130.95,130.91,7.6388]
[1725619054837,7.6388,130.91,130.9,15.9024]
[1725619055446,20.0,130.91,130.86,34.8071]
[1725619055621,19.0948,130.93,130.86,34.8071]
[1725619055822,20.0,130.92,130.86,15.704]
[1725619056126,7.6401,130.89,130.86,15.704]
[1725619056438,20.0,130.88,130.86,15.704]
[1725619056624,20.0,130.88,130.86,23.3456]
[1725619056829,7.6393,130.91,130.86,23.3456]
[1725619057015,7.6394,130.9,130.86,23.3456]
[1725619057321,27.6394,130.9,130.86,23.3456]
[1725619057522,7.6402,130.89,130.86,15.704]
[1725619057733,27.6396,130.9,130.86,15.704]
[1725619058430,27.6396,130.9,130.86,23.3455]
[1725619058742,20.0,130.9,130.87,7.641]
[1725619058941,7.6395,130.9,130.86,23.3456]
[1725619059243,20.0,130.89,130.86,23.3456]
[1725619060122,20.0,130.89,130.87,7.6411]
[1725619060318,20.0,130.9,130.87,7.6411]
[1725619062141,7.638,130.93,130.89,26.7392]
[1725619062344,7.6383,130.92,130.89,19.0997]
[1725619062560,7.6375,130.94,130.9,7.6391]
[1725619062844,19.0917,130.95,130.86,34.8079]
[1725619063555,7.6384,130.92,130.88,7.6402]
[1725619064045,7.6384,130.92,130.86,34.8079]
[1725619064046,7.6396,130.9,130.86,23.3457]
[1725619064552,19.0946,130.93,130.86,23.3457]
[1725619064553,7.639,130.91,130.86,23.3457]
[1725619064726,20.0,130.9,130.86,23.3457]
[1725619065152,20.0,130.9,130.87,7.641]
[1725619065450,27.6394,130.9,130.86,23.3455]
[1725619066157,20.0,130.9,130.87,7.6411]
[1725619067256,27.6394,130.9,130.86,23.3455]
[1725619067428,7.6394,130.9,130.86,23.3455]
[1725619068126,7.64,130.89,130.86,15.704]
[1725619068657,27.6411,130.88,130.83,23.3966569]
[1725619069158,20.0,130.88,130.85,7.6422]
[1725619070136,20.0,130.88,130.86,7.6417]
[1725619070749,20.0,130.89,130.86,7.6417]
[1725619071139,27.64,130.89,130.86,7.6417]
[1725619071962,20.0,130.89,130.86,7.6417]
[1725619072628,19.094,130.94,130.86,19.1029]
[1725619072829,7.6386,130.92,130.88,7.6402]
[1725619073128,7.6379,130.93,130.89,7.6398]
[1725619073344,7.6379,130.93,130.9,8.16486884]
[1725619074437,7.6379,130.93,130.9,0.52556884]
[1725619075954,7.6382,130.92,130.89,15.7983]
[1725619076365,7.6382,130.92,130.88,26.7404]
[1725619076531,7.6382,130.92,130.83,39.66759475]
[1725619076532,7.6411,130.87,130.83,7.9811569]
[1725619076926,20.0,130.86,130.83,7.9811569]
[1725619078858,20.0,130.86,130.84,7.6425]
[1725619079031,20.0,130.87,130.84,7.6425]
[1725619080233,20.0,130.87,130.83,0.3381569]
[1725619080443,7.6402,130.89,130.85,7.6418]
[1725619080647,20.0,130.88,130.85,7.6418]
[1725619082147,19.0926,130.95,130.86,19.1041]
[1725619082357,7.6391,130.91,130.87,7.6408]
[1725619083356,7.6391,130.91,130.88,7.6404]
[1725619083544,7.6385,130.92,130.88,26.7418]
[1725619084973,27.6391,130.91,130.88,19.1014]
[1725619085447,7.6412,130.87,130.83,7.9812569]
[1725619085639,20.0,130.91,130.83,0.3381569]
[1725619085839,7.6409,130.88,130.84,26.75]
[1725619086463,7.6401,130.89,130.85,7.6422]
[1725619086641,7.6376,130.93,130.86,1.25727202]
[1725619086839,7.6383,130.92,130.88,7.6403]
[1725619087061,7.639,130.91,130.88,19.1014]
[1725619087263,7.6398,130.9,130.86,26.7455]
[1725619087664,7.6401,130.89,130.86,26.7455]
[1725619088544,38.1812,130.96,130.86,19.1042]
[1725619088545,57.2721,130.96,130.86,19.1042]
[1725619088749,9.64500555,130.97,130.87,50.0]
[1725619088941,3.17640555,130.97,130.87,50.0]
[1725619089263,19.0866,130.99,130.87,50.0]
[1725619089264,19.0866,130.99,130.91,19.0965]
[1725619089456,7.637,130.95,130.92,1.52729396]
[1725619090470,20.0,130.94,130.92,1.52729396]
[1725619090649,20.0,130.94,130.92,7.6382]
[1725619090847,20.0,130.95,130.92,7.6382]
[1725619091261,27.6365,130.95,130.91,26.7351]
[1725619092962,20.0,130.95,130.89,7.6394]
[1725619093267,19.0886,130.97,130.89,7.6394]
[1725619093268,7.638,130.93,130.89,7.6394]
[1725619093874,7.6383,130.92,130.88,26.7405]
[1725619095106,27.6389,130.91,130.88,19.1003]
[1725619095373,7.6396,130.9,130.87,7.6411]
[1725619095757,7.6396,130.9,130.86,29.4561]
[1725619097890,27.6392,130.91,130.87,7.6411]
[1725619100079,20.0,130.91,130.86,21.8146]
[1725619100377,7.6404,130.89,130.86,21.8146]
[1725619100784,7.6404,130.89,130.86,15.7119]
[1725619101487,2.05610451,130.98,130.87,50.0]
[1725619101788,7.6377,130.93,130.89,26.7393]
[1725619102079,19.0869,130.98,130.89,26.7393]
[1725619102080,7.6373,130.94,130.9,9.16231909]
[1725619102396,7.6365,130.95,130.91,7.6387]
[1725619103259,22.26330555,130.98,130.9,7.6393]
[1725619103260,7.6374,130.94,130.9,7.6393]
[1725619104784,20.0,130.93,130.9,7.6393]
[1725619105387,27.6378,130.93,130.89,32.7646]
[1725619106791,20.0,130.93,130.89,6.025]
[1725619106990,20.0,130.95,130.86,41.3029]
[1725619107189,7.6383,130.92,130.88,7.6402]
[1725619110193,7.639,130.91,130.87,26.7424]
[1725619110399,39.0925,130.95,130.87,26.7424]
[1725619110564,7.6394,130.9,130.86,29.8413]
[1725619111308,7.6406,130.88,130.86,15.7119]
[1725619111466,19.1,130.89,130.83,16.9234569]
[1725619111795,7.6414,130.87,130.83,24.5668569]
[1725619114092,27.6409,130.88,130.84,7.6427]
[1725619114489,20.0,130.88,130.83,16.9234569]
[1725619114669,20.0,130.91,130.86,7.6414]
[1725619115299,7.64,130.89,130.85,26.7477]
[1725619115597,20.0,130.88,130.85,26.7477]
[1725619117306,27.6406,130.88,130.85,26.7477]
[1725619117477,27.6406,130.88,130.85,19.1057]
[1725619117803,7.6416,130.87,130.83,43.6751569]
[1725619118195,7.6421,130.86,130.83,36.0320569]
[1725619118904,7.6429,130.84,130.83,0.3381569]
[1725619119093,27.6429,130.84,130.83,0.3381569]
[1725619121604,20.0,130.84,130.83,0.3381569]
[1725619122988,27.6429,130.84,130.83,0.3381569]
[1725619125597,20.0,130.84,130.83,0.3381569]
[1725619127694,27.6429,130.84,130.83,0.3381569]
[1725619142105,7.6459,130.79,130.76,15.1309]
[1725619142309,7.6453,130.8,130.76,22.7784]
[1725619142518,7.6453,130.8,130.77,1.52911684]
[1725619142826,20.0,130.79,130.76,22.7784]
[1725619143713,19.1055,130.86,130.77,19.1169]
[1725619144234,20.0,130.87,130.76,15.1309]
[1725619144235,19.1079,130.84,130.76,15.1309]
[1725619144409,20.0,130.83,130.76,15.1309]
[1725619144604,7.6448,130.81,130.77,7.647]
[1725619144936,27.6452,130.8,130.76,22.7783]
[1725619145132,7.6452,130.8,130.76,22.7783]
[1725619146110,20.0,130.83,130.76,22.7783]
[1725619146111,27.6459,130.79,130.76,15.1309]
[1725619146310,7.6453,130.8,130.76,22.7784]
[1725619146524,20.0,130.79,130.76,22.7784]
[1725619148828,20.0,130.79,130.76,15.1309]
[1725619149034,20.0,130.81,130.74,19.121]
[1725619149330,7.6454,130.8,130.76,7.6475]
[1725619149534,7.6454,130.8,130.74,19.121]
[1725619149535,19.1071,130.85,130.77,1.18027495]
[1725619149824,19.1071,130.85,130.78,15.9378]
[1725619150009,19.1071,130.85,130.79,1.52848089]
[1725619150211,7.6444,130.82,130.78,42.6996]
[1725619150515,7.6446,130.81,130.78,35.0533]
[1725619150724,21.1599984,130.85,130.78,15.9378]
[1725619151019,21.1599984,130.85,130.75,19.1197]
[1725619151020,7.6459,130.79,130.76,15.9378]
[1725619151220,20.0,130.78,130.76,15.9378]
[1725619151411,27.6465,130.78,130.76,15.9378]
[1725619151923,7.647,130.77,130.76,15.9378]
[1725619152227,7.6476,130.76,130.73,23.5869]
[1725619152431,27.6476,130.76,130.73,23.5869]
[1725619152828,27.6476,130.76,130.73,15.9378]
[1725619153126,27.6478,130.76,130.73,15.9378]
[1725619153427,20.0,130.76,130.73,23.5869]
[1725619155030,20.0,130.76,130.73,25.04965784]
[1725619155327,20.0,130.76,130.74,9.11134595]
[1725619155537,7.6455,130.8,130.75,7.6477]
[1725619155706,7.6455,130.8,130.74,19.1206]
[1725619155911,7.6455,130.8,130.76,7.6471]
[1725619156137,7.6458,130.79,130.75,7.648]
[1725619156623,7.6464,130.78,130.74,26.7692]
[1725619156808,19.1105,130.82,130.73,15.9378]
[1725619156809,3.17640555,130.82,130.73,15.9378]
[1725619157009,7.6476,130.76,130.73,15.9378]
[1725619157344,7.6479,130.76,130.73,15.9378]
[1725619157716,19.1135,130.8,130.7,8.4890569]
[1725619157717,7.6489,130.74,130.7,8.4890569]
[1725619157911,27.6495,130.73,130.7,0.8381569]
[1725619159233,27.6495,130.73,130.7,8.4889569]
[1725619159234,20.0,130.73,130.7,8.4889569]
[1725619159530,7.6485,130.75,130.71,7.6505]
[1725619159836,20.0,130.74,130.71,9.18031274]
[1725619160330,20.0,130.74,130.71,1.52981274]
[1725619161215,20.0,130.74,130.71,7.6504]
[1725619161415,20.0,130.74,130.7,27.6163569]
[1725619161632,27.6489,130.74,130.7,27.6163569]
[1725619162433,7.65,130.72,130.7,0.8381569]
[1725619162741,19.1192,130.76,130.7,0.8381569]
[1725619162742,27.6505,130.71,130.7,0.8381569]
[1725619169039,20.0,130.71,130.7,0.8381569]
[1725619170016,61.5946,130.78,130.7,0.8381569]
[1725619170337,7.6488,130.74,130.7,8.4891569]
[1725619171841,27.6494,130.73,130.7,0.8381569]
[1725619172214,7.6501,130.72,130.7,0.8381569]
[1725619172843,27.6505,130.71,130.7,0.8381569]
[1725619174643,20.0,130.71,130.7,0.8381569]
[1725619175018,27.6505,130.71,130.7,0.8381569]
[1725619176040,7.6535,130.66,130.63,16.4105]
[1725619176429,20.0,130.65,130.63,16.4105]
[1725619177434,20.0,130.65,130.61,19.1397]
[1725619177641,7.6542,130.65,130.61,20.53737274]
[1725619177825,20.0,130.64,130.61,20.53737274]
[1725619178024,20.0,130.64,130.61,19.1397]
[1725619178329,20.0,130.64,130.61,26.7955]
[1725619178646,20.0,130.65,130.62,7.6557]
[1725619178827,20.0,130.65,130.61,19.1397]
[1725619178828,20.0,130.65,130.63,7.6551]
[1725619179027,20.0,130.66,130.63,7.6551]
[1725619182754,20.0,130.66,130.62,7.6556]
[1725619184245,20.0,130.66,130.64,16.5696]
[1725619184438,7.6518,130.69,130.64,16.5696]
[1725619184439,20.0,130.68,130.64,16.5696]
[1725619184645,20.0,130.68,130.64,24.2241]
[1725619185656,7.6513,130.7,130.64,16.5696]
[1725619185842,7.6503,130.72,130.67,26.7845]
[1725619186348,23.365,130.75,130.67,19.1319]
[1725619186665,19.124,130.73,130.66,6.5689]
[1725619186832,4.2436,130.69,130.59,16.0121]
[1725619187037,7.6552,130.63,130.59,16.0121]
[1725619187539,20.0,130.62,130.59,16.0121]
[1725619187857,4.2436,130.69,130.6,19.1412]
[1725619188061,7.6538,130.66,130.61,7.656]
[1725619188260,24.2436,130.69,130.6,19.1412]
[1725619188261,20.0,130.65,130.6,19.1412]
[1725619188452,7.6524,130.68,130.63,7.6552]
[1725619188658,20.0,130.67,130.63,7.655]
[1725619189969,23.3676,130.73,130.64,42.15655549]
[1725619190161,23.3676,130.73,130.65,1.53043834]
[1725619190977,7.6511,130.7,130.64,40.626]
[1725619191400,20.0,130.69,130.64,40.626]
[1725619192490,20.0,130.69,130.66,7.6533]
[1725619192899,20.0,130.69,130.65,7.6538]
[1725619195495,20.0,130.69,130.66,7.6533]
[1725619195982,20.0,130.69,130.67,1.03892256]
[1725619196295,20.0,130.7,130.67,1.03892256]
[1725619197171,27.6511,130.7,130.66,19.1333]
[1725619197673,27.6511,130.7,130.64,15.076]
[1725619197674,39.1283,130.7,130.64,15.076]
[1725619197874,7.653,130.67,130.64,15.076]
[1725619198077,20.0,130.66,130.64,15.076]
[1725619198669,27.6529,130.67,130.64,15.076]
[1725619199498,7.6535,130.66,130.64,15.076]
[1725619199803,20.0,130.65,130.61,6.3085]
[1725619201478,7.6548,130.64,130.61,6.3085]
[1725619201687,20.0,130.63,130.61,6.3085]
[1725619201986,62.95835705,130.71,130.62,8.99375734]
[1725619202199,7.653,130.67,130.62,8.99375734]
[1725619202398,20.0,130.66,130.62,8.99375734]
[1725619202877,1.33265705,130.71,130.65,7.6538]
[1725619203074,1.33265705,130.71,130.66,1.5304746]
[1725619203288,1.33265705,130.71,130.64,19.1361]
[1725619203506,7.6529,130.67,130.65,1.53053474]
[1725619203886,7.6524,130.68,130.64,19.1361]
[1725619204201,27.6529,130.67,130.64,19.1361]
[1725619204703,27.653,130.67,130.65,1.53056808]
[1725619205201,8.98365705,130.71,130.66,7.6532]
[1725619205400,8.98365705,130.71,130.67,1.53026461]
[1725619205604,7.6513,130.7,130.67,1.53026461]
[1725619205818,8.98325705,130.71,130.67,9.18296461]
[1725619205992,8.98325705,130.71,130.68,1.53020377]
[1725619206505,8.98325705,130.71,130.66,7.6532]
[1725619206704,1.33265705,130.71,130.67,7.6527]
[1725619206903,8.98355705,130.71,130.66,7.653]
[1725619207122,20.0,130.7,130.66,7.653]
[1725619208115,27.6511,130.7,130.66,7.653]
[1725619208496,7.6522,130.69,130.65,19.1347]
[1725619208700,27.6512,130.7,130.66,1.53031724]
[1725619208905,20.0,130.7,130.67,1.53027572]
[1725619209719,20.0,130.7,130.67,1.52985341]
[1725619210237,27.6511,130.7,130.66,7.6529]
[1725619211617,7.6519,130.69,130.65,26.7885]
[1725619212224,7.6523,130.68,130.64,23.6311]
[1725619212399,20.0,130.67,130.64,23.6311]
[1725619213302,20.0,130.67,130.65,7.6539]
[1725619213506,20.0,130.68,130.65,7.6539]
[1725619213921,27.6522,130.68,130.65,7.6539]
[1725619214631,20.0,130.68,130.64,35.1129]
[1725619214817,21.33265705,130.71,130.64,35.1129]